Cogmind - Beta 10.2 *** ADVENTURER MODE // 2021.01.01 @ 00:07:33 Player: Taocayo Result: Destroyed by L-31 Rogue with Katana Performance ------------- Evolutions (2) 1000 Regions Visited (4) 800 Robots Destroyed (37) 185 Value Destroyed (922) 922 Prototype IDs (0) 0 Alien Tech Used (0) 0 Bonus (0) 0 TOTAL SCORE: 2907 Bonus ------- None Cogmind --------- Core Integrity 0/550 Matter 243/300 Energy 100/100 System Corruption 0% Temperature Cool (0) Movement Core (150) Ox2 Location -8/Storage Parts ------- > --- POWER (2) -------- (None) > --- PROPULSION (4) --- (None) > --- UTILITY (2) ------ Field Recycling Unit > --- WEAPON (3) ------- (None) > --- INVENTORY (4) ---- (None) Peak State ------------ > --- POWER ------------ Nuclear Core > --- PROPULSION ------- Improved Aluminum Leg Improved Aluminum Leg Improved Aluminum Leg Improved Aluminum Leg > --- UTILITY ---------- Hardened Light Armor Plating Field Recycling Unit > --- WEAPON ----------- Improved Light Cannon Improved Light Cannon Improved Light Cannon > --- INVENTORY -------- (None) [Rating: 21] Favorites ----------- Power Ion Engine Engine Ion Engine Power Core Nuclear Core Propulsion Aluminum Leg Treads Light Treads Leg Aluminum Leg Utility Field Recycling Unit Device Field Recycling Unit Storage High-capacity Matter Pod Protection Hardened Light Armor Plating Weapon Improved Light Cannon Energy Gun EM Pulse Gun Energy Cannon Light EM Pulse Cannon Ballistic Gun Light Assault Rifle Ballistic Cannon Improved Light Cannon Build | -11 -10 -9 -8 -8 ------- Run | Scr Mat Mat Mat Sto Slots Evolved 4 | . . 2 2 . Power 1 | . . 1 . . Propulsion 2 | . . 1 1 . Utility . | . . . . . Weapon 1 | . . . 1 . Parts Attached 50 | 8 8 9 15 10 Power 7 | 1 1 2 3 . Engine 6 | 1 1 2 2 . Core 1 | . . . 1 . Reactor . | . . . . . Propulsion 22 | 2 1 7 4 8 Treads 11 | . . 3 4 4 Leg 11 | 2 1 4 . 4 Wheel . | . . . . . Hover . | . . . . . Flight . | . . . . . Utility 9 | 2 2 . 5 . Device 6 | 1 1 . 4 . Storage 2 | 1 1 . . . Processor . | . . . . . Hackware . | . . . . . Protection 1 | . . . 1 . Artifact . | . . . . . Weapon 12 | 3 4 . 3 2 Energy Gun 1 | 1 . . . . Energy Cannon 1 | . . . . 1 Ballistic Gun 7 | 2 4 . . 1 Ballistic Cannon 3 | . . . 3 . Launcher . | . . . . . Special Weapon . | . . . . . Impact Weapon . | . . . . . Slashing Weapon . | . . . . . Piercing Weapon . | . . . . . Special Melee Weapon . | . . . . . Unidentified Prototypes . | . . . . . Parts Lost 22 | . . 12 . 10 Power 4 | . . 3 . 1 Propulsion 10 | . . 6 . 4 Utility 3 | . . 2 . 1 Weapon 5 | . . 1 . 4 Highest Loss Streak 8 | . . 5 . 8 Average Slot Usage (%) 74 | . 99 76 67 57 Engine 7 | . 14 16 3 . Core 3 | . . . 5 6 Treads 6 | . . 3 13 1 Leg 14 | . 28 21 2 23 Device 10 | . 17 8 9 9 Storage 4 | . 10 10 . . Protection 4 | . . . 7 5 Ballistic Gun 8 | . 23 16 . . Ballistic Cannon 12 | . . . 26 8 Naked Turns 6 | . . 6 . . Heaviest Build 39 | 14 14 17 39 32 Greatest Support 69 | 20 20 69 60 52 Greatest Overweight (x) 5 | 1 . 5 3 2 Average Overweight (x) . | . . . . . Largest Inventory Capacity 6 | 6 6 4 4 4 Average Capacity 4 | 4 4 4 4 4 Most Carried 4 | 3 4 3 4 2 Average Carried 1 | 1 3 2 . . Final Capacity 6 | 6 4 4 4 4 Final Carried 2 | 2 2 1 . . Class Distribution -------------------- 65% | Mutant 16% | Tank 15% | Scavenger-Mutant Dominant Class ---------------- Mutant | -10/Materials Scavenger-Mutant | -9/Materials Tank | -8/Materials Mutant | -8/Storage Resources | -11 -10 -9 -8 -8 ----------- Run | Scr Mat Mat Mat Sto Matter Collected 975 | 305 262 158 222 28 Remotely 102 | 42 60 . . . Salvage Created 1184 | 159 268 382 318 57 Parts 75 | 13 21 18 23 . Haulers Intercepted 1 | . . . 1 . Recyclers Shooed 3 | . 1 2 . . Parts Field Recycled 29 | . . . 26 3 Retrieved Matter 293 | . . . 270 23 Parts Self-Destructed . | . . . . . Prevented . | . . . . . Kills | -11 -10 -9 -8 -8 ------- Run | Scr Mat Mat Mat Sto Combat Hostiles Destroyed 21 | . 5 5 8 3 Melee 1 | . . 1 . . Guns 9 | . 5 4 . . Cannons 11 | . . . 8 3 Classes Destroyed 11 | 3 3 1 4 . Worker 4 | 2 1 . 1 . Builder 2 | . . . 2 . Tunneler 3 | 3 . . . . Hauler 1 | . . . 1 . Recycler 4 | 1 1 2 . . Watcher 2 | . 1 . 1 . Swarmer 3 | . 3 . . . Grunt 11 | . 2 4 3 2 Brawler 1 | . . . 1 . Duelist 1 | . . 1 . . Sentry 5 | . . . 4 1 Best Kill Streak 5 | 3 5 2 3 2 Combat Bots Only 3 | . 3 1 3 2 Max Kills in Single Turn 2 | 1 2 1 1 1 Gunslinging 1 | . 1 . . . Exploded . | . . . . . Melee 1 | . . 1 . . Uniques/NPCs Destroyed . | . . . . . Combat | -11 -10 -9 -8 -8 -------- Run | Scr Mat Mat Mat Sto Damage Taken 3591 | 12 157 1510 429 1483 Core 996 | 6 33 390 49 518 Absorbed by Shields . | . . . . . Core Remaining (%) 61 | 97 84 2 . . Volleys Fired 123 | 15 20 32 31 25 Largest 3 | 2 2 2 3 2 Hottest 117 | 60 60 40 117 95 Shots Fired 232 | 16 40 63 74 39 Gun 121 | 16 40 63 . 2 Cannon 111 | . . . 74 37 Launcher . | . . . . . Special . | . . . . . Kinetic 210 | 13 30 63 74 30 Thermal . | . . . . . Explosive . | . . . . . Electromagnetic 22 | 3 10 . . 9 Robot Hit Streak 24 | 7 13 9 24 8 Robot Miss Streak 3 | 1 1 1 3 3 Penetration Max . | . . . . . Secondary Targets 2 | . 1 1 . . Max Gunslinging Chain 1 | . 1 1 . . Shots Hit Robots 174 | 13 33 44 54 30 Core Hits 68 | 8 11 21 19 9 Critical Hits 3 | . . . 2 1 Critical Kills 2 | . . . 2 . Critical Parts Destroyed 1 | . . . . 1 Melee Attacks . | . . . . . Impact . | . . . . . Slashing . | . . . . . Piercing . | . . . . . Sneak Attacks . | . . . . . Combat Hostiles . | . . . . . Follow-up Attacks . | . . . . . Damage Inflicted 2654 | 172 273 390 1151 668 Guns 820 | 139 273 376 . 32 Cannons 1687 | . . . 1143 544 Explosions 106 | 33 . . . 73 Melee . | . . . . . Ramming 41 | . . 14 8 19 Kinetic 2249 | 99 172 376 1143 459 Thermal 68 | 33 . . . 35 Explosive 38 | . . . . 38 Electromagnetic 258 | 40 101 . . 117 Impact . | . . . . . Slashing . | . . . . . Piercing . | . . . . . Highest Corruption . | . . . . . Average Corruption . | . . . . . Corruption Purged . | . . . . . Overload Shots . | . . . . . Overflow Damage 13 | . . . 13 . Projectiles 13 | . . . 13 . Explosions . | . . . . . Melee . | . . . . . Knockbacks 16 | . . . 12 4 Impact . | . . . . . Kinetic 16 | . . . 12 4 Secondary . | . . . . . Self-Inflicted Damage 16 | 12 . 2 . 2 Shots 1 | 1 . . . . Rammed 7 | . . 5 . 2 Targets Rammed 15 | . . 8 1 6 Kicked 6 | . . 2 . 4 Crushed 2 | . . 1 1 . Highest Temperature 504 | 20 12 14 504 353 Average Temperature 137 | 13 8 3 174 156 Received Heat Transfer 1572 | . 96 576 243 657 Effects 17 | . . . 15 2 Shutdowns 2 | . . . 2 . Energy Bleed 1 | . . . 1 . Interference 10 | . . . 8 2 Short Circuit 3 | . . . 3 . Damage (minor) 1 | . . . 1 . Siege Activations . | . . . . . Robots Corrupted . | . . . . . Combat Hostiles . | . . . . . Parts Fried . | . . . . . Impact Corruptions . | . . . . . Robots Melted . | . . . . . Combat Hostiles . | . . . . . Parts Melted . | . . . . . Heat Transferred 50 | . . . . 50 Parts Sabotaged . | . . . . . Parts Stolen . | . . . . . Parts Stripped . | . . . . . Power Chain Reactions 2 | 1 . . . 1 Missiles Intercepted . | . . . . . Alert | -11 -10 -9 -8 -8 ------- Run | Scr Mat Mat Mat Sto Peak Influence 196 | 30 192 175 180 196 Initial 49 | . 16 . . 49 Average 69 | 5 103 83 45 115 Maximum Alert Level . | . . . . . Low Security (%) 100 | 100 100 100 100 100 Level 1 . | . . . . . Level 2 . | . . . . . Level 3 . | . . . . . Level 4 . | . . . . . Level 5 . | . . . . . High Security . | . . . . . Max Security . | . . . . . Squads Dispatched 6 | . 1 2 2 1 Investigation 2 | . 1 1 . . Extermination . | . . . . . Reinforcement 4 | . . 1 2 1 Assault . | . . . . . Garrison . | . . . . . Intercept . | . . . . . Construction Impeded . | . . . . . Haulers Reinforced . | . . . . . Stealth | -11 -10 -9 -8 -8 --------- Run | Scr Mat Mat Mat Sto Distress Signals 3 | . . 2 . 1 Communications Jammed . | . . . . . Distress Signals . | . . . . . Times Spotted 67 | . 6 25 14 22 Peak Tracking Total 19 | . 3 19 7 14 Tactical Retreats 6 | . . 2 1 3 Traps | -11 -10 -9 -8 -8 ------- Run | Scr Mat Mat Mat Sto Traps Triggered 6 | . 2 3 . 1 Indirectly . | . . . . . Trap Hack Attempts . | . . . . . Triggered . | . . . . . Disarmed . | . . . . . Reprogrammed . | . . . . . Reused . | . . . . . Traps Extracted . | . . . . . Installed . | . . . . . Triggered . | . . . . . Machines | -11 -10 -9 -8 -8 ---------- Run | Scr Mat Mat Mat Sto Machines Disabled 3 | . 1 . . 2 Max in Single Turn 1 | . 1 . . 1 Machines Sabotaged . | . . . . . Garrisons Compromised . | . . . . . Overloaded Fab Kills . | . . . . . Fab Network Shutdowns . | . . . . . Hacking | -11 -10 -9 -8 -8 --------- Run | Scr Mat Mat Mat Sto Machines Accessed 1 | . 1 . . . Terminals . | . . . . . Fabricators . | . . . . . Repair Stations 1 | . 1 . . . Recycling Units . | . . . . . Scanalyzers . | . . . . . Garrison Access . | . . . . . Total Hacks 2 | . 2 . . . Successful 2 | . 2 . . . Failed . | . . . . . Catastrophic . | . . . . . Database Lockouts . | . . . . . Manual 1 | . . . . 1 Terminals . | . . . . . Fabricators . | . . . . . Repair Stations 2 | . 2 . . . Recycling Units . | . . . . . Scanalyzers . | . . . . . Garrison Access . | . . . . . Terminal Hacks . | . . . . . Fabricator Hacks . | . . . . . Repair Station Hacks 2 | . 2 . . . Scan Component 1 | . 1 . . . Repair 1 | . 1 . . . Recycling Unit Hacks . | . . . . . Scanalyzer . | . . . . . Garrison Access Hacks . | . . . . . Unauthorized Hacks . | . . . . . Terminals . | . . . . . Fabricators . | . . . . . Repair Stations . | . . . . . Recycling Units . | . . . . . Scanalyzers . | . . . . . Garrison Access . | . . . . . Data Cores Recovered . | . . . . . Used . | . . . . . Hacking Detections . | . . . . . Full Trace Events . | . . . . . Feedback Events . | . . . . . Feedback Blocked . | . . . . . Robot Schematics Acquired . | . . . . . Robots Built . | . . . . . Matter . | . . . . . Time . | . . . . . Total Robot Build Rating . | . . . . . Part Schematics Acquired . | . . . . . Parts Built . | . . . . . Matter . | . . . . . Time . | . . . . . Total Part Build Rating . | . . . . . Parts Repaired 1 | . 1 . . . Time 26 | . 26 . . . Parts Recycled . | . . . . . Recycled Matter . | . . . . . Retrieved Matter . | . . . . . Retrieved Components . | . . . . . Parts Scanalyzed . | . . . . . Part Schematics Acquired . | . . . . . Parts Damaged . | . . . . . Bothacking | -11 -10 -9 -8 -8 ------------ Run | Scr Mat Mat Mat Sto Used RIF Installer . | . . . . . Robots Hacked . | . . . . . Non-combat . | . . . . . Combat . | . . . . . Robot Hacks Applied . | . . . . . Relay Couplers Released . | . . . . . Robots Rewired . | . . . . . Allies Hacked . | . . . . . Hacks Repelled . | . . . . . Allies | -11 -10 -9 -8 -8 -------- Run | Scr Mat Mat Mat Sto Total Allies . | . . . . . Largest Group . | . . . . . Highest-Rated Group . | . . . . . Highest-Rated Ally . | . . . . . Total Orders . | . . . . . Ally Attacks . | . . . . . Total Damage . | . . . . . Kills . | . . . . . Allies Corrupted . | . . . . . Allies Melted . | . . . . . Intel | -11 -10 -9 -8 -8 ------- Run | Scr Mat Mat Mat Sto Robot Analysis Total . | . . . . . Derelict Logs Recovered . | . . . . . Drone Launches . | . . . . . Drone Recoveries . | . . . . . Exploration | -11 -10 -9 -8 -8 ------------- Run | Scr Mat Mat Mat Sto Turns Passed 2621 | 255 498 475 1030 363 Spaces Moved 1642 | 264 327 300 530 221 Core 226 | 161 . 57 . 8 Treads 460 | . . 35 416 9 Legs 956 | 103 327 208 114 204 Wheels . | . . . . . Hover . | . . . . . Flight . | . . . . . Fastest Speed 50 | 50 120 50 120 120 Average Speed 129 | 78 120 120 169 123 Slowest Speed 300 | 120 120 300 210 180 Overloaded Moves . | . . . . . Propulsion Burnouts . | . . . . . Robots Hopped . | . . . . . Cave-ins Triggered . | . . . . . Exploration Rate (%) 38 | 6 49 45 34 56 Regions Visited 4 Branch Regions 1 Pre-discovered Areas . | . . . . . Known Exits Taken . | . . . . . Unknown Exits Taken 4 | 1 1 1 1 . Scrap Searched . | . . . . . Spaces Dug . | . . . . . Terrain Destroyed 21 | 2 . . . 19 Melee . | . . . . . Projectile 1 | . . . . 1 AOE 20 | 2 . . . 18 Terrain Rammed . | . . . . . Walls Destroyed . | . . . . . Machines Disabled . | . . . . . Actions | -11 -10 -9 -8 -8 --------- Run | Scr Mat Mat Mat Sto Total 1921 | 293 398 356 602 272 Wait 47 | 3 30 7 7 . Move 1638 | 263 326 299 529 221 Hop . | . . . . . Pick Up 17 | 4 9 1 3 . Fast Attach 29 | 5 . 7 11 6 Attach 16 | 2 4 2 4 4 Detach 15 | . . . 8 7 Swap 5 | 1 4 . . . Drop 16 | . 5 . 8 3 Fire 123 | 15 20 32 31 25 Melee . | . . . . . Ram 2 | . . . . 2 Kick 7 | . . 3 . 4 Crush 6 | . . 5 1 . Escape Stasis . | . . . . . Rewire . | . . . . . Trap . | . . . . . Miscellaneous . | . . . . . Route ------- -11/Scrapyard -10/Materials (discovered 2 exits: [*Mat x2]) -9/Materials -8/Materials (discovered 2 exits: *Sto x2) -8/Storage History --------- Turn | Location | Event 8 | -11/Scrapyard | Discovered new exit (range 16) 256 | -11/Scrapyard | Entered Materials 332 | -10/Materials | Build established: Mutant 402 | -10/Materials | Discovered new exit (range 16) 455 | -10/Materials | Discovered new exit (range 16) 617 | -10/Materials | Repaired Lgt. Assault Rifle 754 | -10/Materials | Entered another Materials area 754 | -9/Materials | Evolved 2 slots: Power x1, Propulsion x1 1137 | -9/Materials | Lost 5 parts (2p2n1u) 1185 | -9/Materials | Core integrity fell below 50% 1218 | -9/Materials | Core integrity fell below 20% 1218 | -9/Materials | Discovered new exit (range 16) 1229 | -9/Materials | Entered another Materials area 1229 | -8/Materials | Evolved 2 slots: Propulsion x1, Weapon x1 1249 | -8/Materials | Lost 5 parts (1p3n1u) 2023 | -8/Materials | Discovered new exit (range 10) 2100 | -8/Materials | Build established: Tank 2170 | -8/Materials | Discovered new exit (range 15) 2259 | -8/Materials | Entered Storage 2514 | -8/Storage | Build established: Mutant 2556 | -8/Storage | Core integrity fell below 50% 2563 | -8/Storage | Lost 8 parts (1p3n1u3w) 2618 | -8/Storage | Core integrity fell below 20% 2622 | -8/Storage | Destroyed by L-31 Rogue with Katana Last Messages --------------- 02521_ Slug penetrates Transport Mainframe. 02521_ Transport Mainframe disabled. 02521_ Imp. Aluminum Leg destroyed. 02531_ Hpw. Shotgun destroyed. 02532_ Penetrated by Slug. 02532_ Nuclear Core destroyed. 02532_ Component Storage disabled. 02585_ T-07 Excavator is excavating. 02598_ Kicked A-02 Transporter out of the way. 02598_ T-07 Excavator is excavating. 02607_ Imp. Aluminum Leg destroyed. 02609_ Slug penetrates Wall. 02616_ A-02 Transporter destroyed. 02618_ Triggered Ambush Trap. 02618_ L-31 Rogue emerges from a hatch in the floor. 02618_ B-36 Bruiser emerges from a hatch in the floor. 02618_ S-10 Pest emerges from a hatch in the floor. 02620_ Slammed into B-36 Bruiser. 02621_ S-10 Pest destroyed. 02621_ Slammed into Y-45 Defender. Map ----- +----------------------------------------------------+ | """"" #?######## # ## + !!#???? ?? # | | """"" #?# ## # #?? ? # | | #?# ## # #? ?? # | | ### ## # / # ???# # | | ?????# + ] ## ######## ?????# # | | ?#####+##### ]! % ## ########+##+##### # | | ?# ## ] ## # | | ?# """" ## ## # | | ?# "??" ## #?# """"" """"" # | | ?# "??" ######+######## """"" """"" # | | ?# "??" # """"" """"" # | | ## "??" # # | | ## """ # # | | ## ################################### # | | ## #?????????????????????????????????# # | | ######+##############??????################## # | | #???# ????? # | | ##### ????? # | | """ ????? # | | ####### Y" #####?????????########## ###### | | #?????# ! #??????????????????????# #????? | | #?????# #??????????????????????# #????? | | #?????# *** #?????????????????????## ##???? | | /####### *** ####################### ####? | | # *** b % /[/ ggg # #? | | # @l [%/=g h T #? | | # Y ![! YY Y # #?? | | # #####+#########+############## ###?? | | / #????????????? ???????????#####+#####?? | | # #????????????""????????????# #?? | | # #??????????? "R???????????# #?? | | # #??????????# "????????????## #?? | | # #??????????# ?????????????# #?? | | ####### #??????????????????????????# ]] #?? | | #??????????????????????????# ]] #?? | | #??????????????????????????# #?? | | #??????????????????????????# #?? | | ###########??????????????????????????###########?? | | ?????????????????????????????????????????????????? | | ?????????????????????????????????????????????????? | | ?????????????????????????????????????????????????? | | ?????????????????????????????????????????????????? | | ?????????????????????????????????????????????????? | | ?????????????????????????????????????????????????? | | ?????????????????????????????????????????????????? | | | | | | | | | | | +----------------------------------------------------+ Best States ------------- Heat Dissipation 31 Energy Generation 19 Energy Capacity 430 Matter Stores 500 Matter Capacity 500 Sight Range 16 Robot Scan Range 16 Terrain Scan Density 10 Armor Coverage 150 Resistance: KI 20 Resistance: TH 20 Resistance: EX 20 Resistance: EM 20 Resistance: I 20 Resistance: S 20 Resistance: P 20 Evasion (%) 50 Recoil Reduction 3 Offensive Hacking 10 Item Schematics ----------------- None Robot Schematics ------------------ None Fabricated ------------ Nothing Alien Tech Used ----------------- None Achievements -------------- None Challenges ------------ None Game ------ Seed OverloadScanSheargun Manual? 0 Play Time 01:37:40 Cumulative 15.2 hours Start 2020.12.31 @ 02:54:38 End 2021.01.01 @ 00:07:33 Sessions 4 Manual Loads 0 Difficulty Adventurer Special Mode None Game No. 8 Rogue 0 Adventurer 6 Explorer 2 Win Type - Total 0 Types 0/0/0/0/0/0/0/0/0 Lore% 4 Gallery% 16 Achievement% 18 Wizard Run 0 Options --------- ASCII 0 Keyboard 1 Movement Vi Keybinds 0 Fullscreen 1 Font 18/X11 Map View 76x50 Tactical HUD 1 Map Filters NONE Filters NONE Steam 1 RUN: 09393ced-c28e-4286-91c7-24dcf278e987